bitfinex/quotes_ETHUSD_20251006
["timestamp","ask_amount","ask_price","bid_price","bid_amount"]
[1759750460405,2.507,4574.6,4571.9,2.29934467]
[1759750460406,2.507,4574.6,4573.1,2.18668009]
[1759750460604,2.507,4574.6,4573.1,2.18669482]
[1759750460826,2.18633308,4573.9,4572.3,4.58708308]
[1759750461024,4.69336639,4573.8,4572.9,2.18675792]
[1759750461186,4.6934161,4573.7,4573.2,0.1096]
[1759750461386,2.507,4573.6,4573.2,0.1096]
[1759750461793,2.507,4573.6,4571.7,0.02]
[1759750462088,2.507,4573.6,4572.7,0.1096]
[1759750462089,0.1096,4573.4,4572.7,0.1096]
[1759750462332,2.381,4573.3,4572.8,0.4421]
[1759750463626,2.3802,4573.3,4572.8,0.4421]
[1759750464719,2.3802,4573.3,4572.9,0.4421]
[1759750464934,2.3802,4573.3,4572.2,2.18712518]
[1759750465131,2.3802,4573.3,4573.0,0.4421]
[1759750465330,2.3802,4573.3,4571.2,2.18756355]
[1759750465331,2.3802,4573.3,4573.1,0.4421]
[1759750465639,2.18613375,4574.3,4573.2,0.4421]
[1759750465827,2.509,4574.2,4573.2,0.4421]
[1759750466004,0.6583424,4574.6,4573.2,0.4421]
[1759750466206,0.002,4574.6,4573.2,0.4421]
[1759750466746,0.495,4574.5,4573.5,2.18650545]
[1759750466936,0.495,4574.5,4573.6,0.66075054]
[1759750467108,0.495,4574.5,4573.7,0.4421]
[1759750468239,0.002,4574.6,4573.7,0.4421]
[1759750468910,0.002,4574.6,4574.2,2.18616593]
[1759750469111,0.002,4574.6,4573.7,0.4421]
[1759750469307,0.002,4574.6,4573.9,2.18631802]
[1759750469510,0.002,4574.6,4573.8,0.26285168]
[1759750469712,0.002,4574.6,4574.4,2.18607677]
[1759750469906,0.002,4574.6,4574.5,2.18603126]
[1759750470343,0.002,4574.6,4574.5,2.62813126]
[1759750470540,0.002,4574.6,4574.5,3.1095562]
[1759750470708,0.002,4574.6,4574.5,5.5095562]
[1759750472959,0.002,4574.6,4574.5,6.1431562]
[1759750473350,0.002,4575.1,4575.0,2.18579234]
[1759750473668,0.002,4575.1,4575.0,5.21939234]
[1759750473868,0.002,4575.1,4575.0,6.51011788]
[1759750474241,0.002,4575.1,4575.0,5.76691788]
[1759750475287,0.002,4575.1,4575.0,3.14052554]
[1759750475489,0.002,4575.1,4575.0,2.4]
[1759750476079,0.002,4575.1,4574.4,0.4561]
[1759750476587,0.002,4575.1,4574.4,2.64217211]
[1759750476751,0.002,4575.1,4574.5,2.18603126]
[1759750477080,0.002,4575.1,4575.0,2.18579234]
[1759750477244,0.002,4575.1,4575.0,2.40437157]
[1759750477444,0.002,4575.1,4575.0,2.86047157]
[1759750477867,0.002,4575.1,4575.0,0.21857923]
[1759750478071,0.002,4575.1,4574.6,2.8561]
[1759750478280,0.002,4575.1,4575.0,2.18579234]
[1759750478670,0.002,4575.1,4575.0,2.64189234]
[1759750479302,0.002,4575.1,4575.0,2.18579234]
[1759750479477,0.002,4575.1,4573.0,1.54061229]
[1759750479478,0.002,4575.1,4574.7,0.4561]
[1759750479803,0.002,4575.1,4574.8,0.26420956]
[1759750480006,0.002,4575.1,4574.9,2.64189247]
[1759750480297,0.002,4575.1,4574.9,2.18579247]
[1759750480468,0.002,4575.1,4575.0,2.18579234]
[1759750480997,0.002,4575.1,4575.0,2.64189234]
[1759750481205,0.002,4575.1,4573.7,1.16439886]
[1759750481387,0.002,4575.1,4575.0,5.04189234]
[1759750483903,0.002,4575.1,4575.0,5.67549234]
[1759750484113,0.002,4575.1,4575.0,4.58579234]
[1759750484409,0.002,4575.1,4575.0,4.69539234]
[1759750484775,0.002,4575.1,4575.0,5.15149234]
[1759750484966,0.002,4575.1,4575.0,5.8852277]
[1759750485168,0.002,4575.1,4575.0,5.4291277]
[1759750485363,0.002,4575.1,4575.0,4.69539234]
[1759750486912,0.002,4575.1,4575.0,5.15149234]
[1759750487114,0.002,4575.1,4575.0,4.69539234]
[1759750487301,0.002,4575.1,4575.0,5.15149234]
[1759750488299,0.0012,4575.1,4575.0,5.15149234]
[1759750488503,0.0012,4575.1,4575.0,5.88522897]
[1759750488900,0.0012,4575.1,4575.0,6.51882897]
[1759750490475,0.0012,4575.1,4575.0,7.68322783]
[1759750491309,0.0012,4575.1,4575.0,6.51882897]
[1759750491879,0.002,4575.6,4575.5,2.81915349]
[1759750491880,1e-08,4575.6,4575.5,2.81915349]
[1759750492118,0.002,4576.1,4576.0,2.18531468]
[1759750492291,0.002,4576.1,4576.0,5.21891468]
[1759750492494,0.002,4576.1,4576.0,6.95113274]
[1759750492820,0.002,4576.1,4576.0,6.69826627]
[1759750493108,0.4616,4578.0,4577.8,2.18440833]
[1759750493311,2.292,4580.4,4576.2,0.6336]
[1759750493312,0.4616,4578.4,4576.9,2.64098063]
[1759750493517,0.4616,4578.4,4577.9,0.1096]
[1759750493724,0.4616,4578.3,4577.9,0.1096]
[1759750493927,0.4616,4578.2,4577.9,0.1096]
[1759750494130,0.4616,4578.4,4578.0,2.18434447]
[1759750494292,2.18341616,4580.0,4578.0,2.18434447]
[1759750494293,0.4616,4578.3,4578.0,2.18434447]
[1759750494498,0.4616,4578.2,4577.3,2.4]
[1759750494796,0.4616,4578.1,4576.6,1.16583441]
[1759750495008,0.4616,4578.0,4577.4,2.18460759]
[1759750495210,0.4616,4578.5,4576.8,2.4]
[1759750495526,0.4616,4578.4,4576.9,0.02184884]
[1759750495718,0.20319974,4578.3,4576.8,2.18488696]
[1759750495915,0.20319974,4578.3,4576.2,0.10909254]
[1759750495916,0.4616,4578.2,4576.2,0.10909254]
[1759750496101,0.4616,4578.2,4576.2,0.12749269]
[1759750496301,0.20327261,4578.1,4576.2,0.12749269]
[1759750496511,0.4616,4578.0,4576.2,0.12749269]
[1759750496823,0.4616,4578.0,4576.8,2.184893]
[1759750497007,0.4616,4577.9,4576.3,0.02185171]
[1759750497203,0.4616,4577.9,4576.2,2.4]
[1759750497407,0.4616,4577.8,4576.1,0.4561]
[1759750497605,0.4616,4577.8,4576.9,2.18484656]
[1759750497927,0.4616,4577.7,4576.7,2.18494159]
[1759750498117,0.4616,4577.6,4576.7,2.18494159]
[1759750498321,0.4616,4577.5,4576.7,2.18494159]
[1759750498618,0.4616,4577.5,4576.8,2.18493011]
[1759750498810,0.4616,4577.6,4576.6,0.02185028]
[1759750499014,0.46019868,4577.6,4576.1,1.62193441]
[1759750499318,2.18427328,4578.2,4576.7,2.18494159]
[1759750499498,0.20349919,4578.1,4576.7,2.18494159]
[1759750499702,0.20349919,4578.1,4576.2,0.17314764]
[1759750499938,2.18439779,4578.0,4576.4,2.18507677]
[1759750500144,0.20349919,4577.9,4576.4,2.18508197]
[1759750500339,0.20349919,4577.9,4575.8,1.16583441]
[1759750500641,2.18482098,4577.1,4575.2,1.16583441]
[1759750500842,0.20349919,4577.0,4575.0,1.16583441]
[1759750501132,0.66509919,4576.9,4575.0,1.16583441]
[1759750501347,0.66521219,4576.8,4575.3,2.18563495]
[1759750501563,0.4616,4576.7,4575.3,2.18561312]
[1759750501721,0.4616,4576.7,4575.1,1.16583441]
[1759750501722,0.4616,4576.6,4575.4,2.18560125]
[1759750501921,0.4616,4576.6,4575.4,2.52074482]
[1759750502128,2.18469732,4577.3,4575.5,4.58554785]
[1759750502129,0.4616,4576.5,4575.5,4.58554785]
[1759750502333,0.4616,4576.5,4575.7,2.18542442]
[1759750502563,0.4616,4576.8,4575.4,2.75699958]
[1759750502722,0.4616,4577.1,4575.6,2.4]
[1759750503050,0.4523,4577.5,4576.9,2.18488373]
[1759750503252,0.4523,4577.5,4577.0,2.18482774]
[1759750503552,0.002,4577.8,4576.4,2.1850905]
[1759750503553,0.4543,4577.8,4576.4,2.1850905]
[1759750503850,0.4543,4577.8,4576.6,2.4]
[1759750504154,0.1096,4577.5,4576.8,0.1096]
[1759750504362,0.1096,4577.5,4576.9,2.18488057]
[1759750504652,0.1096,4577.5,4576.8,0.1096]
[1759750504974,0.1096,4577.5,4577.0,2.18482908]
[1759750505160,0.1096,4577.5,4577.1,2.18478518]
[1759750505458,0.1096,4577.5,4576.5,1.04707766]
[1759750505459,0.1096,4577.5,4577.3,2.1846769]
[1759750505664,0.1116,4577.8,4577.1,0.1096]
[1759750505822,0.4523,4577.7,4577.1,0.1096]
[1759750506150,0.4523,4577.7,4577.2,2.18474176]
[1759750506351,0.1116,4577.8,4577.1,0.1096]
[1759750507052,0.1116,4577.8,4577.4,2.1846284]
[1759750507426,0.1116,4577.8,4577.3,2.18469183]
[1759750507946,0.1116,4577.8,4577.2,0.22944362]
[1759750508116,0.002,4577.8,4577.3,0.49164694]
[1759750508319,0.002,4577.8,4577.7,2.29410313]
[1759750508550,0.002,4577.8,4577.7,5.16381582]
[1759750508786,0.002,4577.8,4577.7,5.61177079]
[1759750509088,0.002,4577.8,4577.7,6.24537079]
[1759750512690,0.0012,4577.8,4577.7,6.24537079]
[1759750513214,0.0012,4577.8,4577.7,5.14197079]
[1759750513390,0.0012,4577.8,4577.7,2.5096]
[1759750513594,0.0012,4577.8,4577.7,4.69410313]
[1759750514020,0.0012,4577.8,4577.7,5.16390313]
[1759750514320,0.0012,4577.8,4577.7,5.79750313]
[1759750515409,0.0012,4577.8,4577.7,5.32770313]
[1759750516192,0.0012,4577.8,4577.7,6.07892915]
[1759750516418,0.0012,4577.8,4577.7,4.69410313]
[1759750516628,0.4535,4577.8,4577.7,4.69410313]
[1759750516836,0.0012,4577.8,4577.7,4.69410313]
[1759750518599,0.0012,4577.8,4576.8,0.6336]
[1759750518600,0.4535,4577.8,4577.2,1.1676411]
[1759750518799,0.4535,4577.8,4577.5,2.29418544]
[1759750519114,0.0012,4577.8,4577.7,2.18450313]
[1759750519419,0.0012,4577.8,4577.7,5.79750313]
[1759750520121,0.0012,4577.8,4577.7,4.69410313]
[1759750520714,0.0012,4577.8,4577.7,5.16390313]
[1759750521125,0.0012,4577.8,4577.7,4.69410313]
[1759750521320,0.0012,4577.8,4577.7,5.56752458]
[1759750521510,0.0012,4577.8,4577.7,6.03732458]
[1759750522199,0.0012,4577.8,4577.7,7.20496568]
[1759750522615,0.0012,4577.8,4577.7,6.67092458]
[1759750526148,1e-08,4578.3,4578.2,2.81786455]
[1759750526426,1e-08,4578.3,4578.2,5.32746455]
[1759750526821,1e-08,4578.3,4578.2,6.49584861]
[1759750530128,1e-08,4578.3,4578.2,5.79726455]
[1759750530326,1e-08,4578.3,4578.2,6.05041405]
[1759750530501,1e-08,4578.3,4578.2,6.87388872]
[1759750532203,1e-08,4578.3,4578.2,8.41450101]
[1759750533402,1e-08,4578.3,4578.2,6.87388872]
[1759750535735,1e-08,4578.3,4578.2,6.62073922]
[1759750537235,0.00120001,4578.8,4578.7,2.18402603]
[1759750537603,0.00120001,4578.8,4578.7,2.29362603]
[1759750538025,0.00120001,4578.8,4578.7,2.98139805]
[1759750538238,0.45410001,4578.8,4578.7,2.92722603]
[1759750538539,0.45410001,4578.8,4578.7,0.1096]
[1759750538835,0.45410001,4578.8,4577.7,1.9425699]
[1759750538836,0.45410001,4578.8,4578.6,2.4]
[1759750539036,0.4529,4578.7,4578.3,1.28114536]
[1759750539209,0.4529,4578.6,4578.3,1.28114536]
[1759750539540,0.4529,4578.5,4578.4,4.58416914]
[1759750540121,0.4529,4578.5,4578.3,1.28114536]
[1759750540323,0.4529,4578.4,4578.2,1.17154536]
[1759750540507,0.4529,4578.4,4577.9,1.17154536]
[1759750540508,0.4529,4578.3,4577.9,1.17154536]
[1759750540712,0.4529,4578.2,4577.6,1.17254536]
[1759750541035,2.18518322,4578.8,4577.8,2.18445511]
[1759750541036,0.1096,4578.0,4577.8,2.18445511]
[1759750541235,0.1096,4578.0,4577.7,2.4]
[1759750541236,0.4529,4577.9,4577.7,2.4]
[1759750541540,0.1096,4578.0,4577.6,1.17254536]
[1759750541541,0.4529,4577.8,4577.6,1.17254536]
[1759750541840,0.4529,4577.7,4577.6,3.57254536]
[1759750542242,0.4529,4577.7,4577.6,0.001]
[1759750542441,0.4529,4578.1,4577.9,2.18440769]
[1759750542647,0.1096,4578.2,4578.0,2.18435998]
[1759750543239,0.4529,4578.1,4578.0,2.18435998]
[1759750543449,0.4529,4578.1,4577.7,3.57271201]
[1759750543450,0.4529,4578.1,4577.7,1.17271201]
[1759750543647,0.4529,4578.0,4577.8,2.4]
[1759750543837,0.4529,4577.9,4577.8,2.4]
[1759750544427,0.4529,4577.9,4577.8,4.58445541]
[1759750545121,0.4529,4577.9,4577.8,2.4]
[1759750545746,0.4529,4577.9,4577.6,1.17371201]
[1759750545943,0.4529,4577.8,4577.6,0.001]
[1759750546287,0.00120001,4578.8,4577.6,0.001]
[1759750546288,0.4529,4577.7,4577.6,0.001]
[1759750546449,0.4529,4577.7,4577.6,2.18555085]
[1759750546830,0.4529,4578.5,4577.6,2.401]
[1759750547037,0.4529,4578.4,4578.3,2.18420174]
[1759750547756,0.4529,4578.4,4577.6,1.17371201]
[1759750549768,0.00120001,4578.8,4577.8,2.18444942]
[1759750550064,0.4529,4577.9,4577.8,4.58444942]
[1759750550553,0.4529,4577.9,4577.7,2.4]
[1759750550852,0.4529,4577.9,4577.6,3.3582439]
[1759750550853,0.4529,4577.8,4577.6,0.001]
[1759750551359,0.4529,4577.7,4577.6,2.18555085]
[1759750552256,0.00120001,4578.8,4577.6,0.001]
[1759750552444,0.4529,4578.3,4578.2,2.18426455]
[1759750552652,0.4529,4578.3,4578.1,2.18430611]
[1759750552961,0.00120001,4578.8,4578.2,2.18425457]
[1759750553158,0.00120001,4578.8,4577.8,0.6336]
[1759750553360,0.4529,4578.7,4577.8,5.21805407]
[1759750553564,0.4529,4578.6,4578.1,2.1842767]
[1759750553789,0.4529,4578.5,4578.0,2.1843251]
[1759750554065,0.00120001,4578.8,4578.2,0.6336]
[1759750554369,0.00120001,4578.8,4577.7,0.6336]
[1759750554569,0.00120001,4578.8,4578.7,2.18402603]
[1759750554966,0.00120001,4578.8,4577.9,2.4]
[1759750554967,0.45410001,4578.8,4577.9,1.17271201]
[1759750555154,0.45410001,4578.8,4577.2,1.81536651]
[1759750555155,2.18424243,4578.3,4577.4,1.17271201]
[1759750555357,2.18424243,4578.3,4577.3,1.17271201]
[1759750555663,0.4529,4578.6,4577.3,0.6336]
[1759750555841,0.4529,4578.6,4577.7,2.18450313]
[1759750556036,0.00120001,4578.8,4577.9,0.6336]
[1759750556254,0.00120001,4578.8,4578.3,0.1096]
[1759750556453,0.45410001,4578.8,4578.4,0.6336]
[1759750556864,0.00120001,4578.8,4578.6,0.6336]
[1759750557668,0.00120001,4578.8,4578.7,2.18402603]
[1759750557868,0.00120001,4578.8,4578.5,0.6336]
[1759750558059,0.4529,4578.7,4578.5,0.6336]
[1759750558258,0.4529,4578.7,4578.3,2.29378155]
[1759750558259,0.4529,4578.7,4578.4,0.6336]
[1759750558760,0.00120001,4578.8,4578.4,0.6336]
[1759750558976,0.4529,4578.6,4578.5,3.0336]
[1759750559878,0.4529,4578.6,4578.5,0.6336]
[1759750560282,0.00120001,4578.8,4578.6,0.6336]
[1759750560698,0.00120001,4578.8,4578.5,0.6336]
[1759750560989,0.4529,4578.7,4578.4,0.6336]
[1759750561564,0.4521,4578.7,4578.4,0.6336]
[1759750561958,0.4521,4578.7,4578.4,2.81773968]
[1759750562185,0.4521,4578.7,4578.4,0.6336]
[1759750562360,0.00120001,4578.8,4578.4,0.6336]
[1759750563095,0.00120001,4578.8,4578.7,2.81762603]
[1759750563260,0.00120001,4578.8,4578.7,2.92722603]
[1759750564497,2.18402839,4578.7,4578.3,1.17271201]
[1759750564656,0.45160001,4578.8,4577.8,0.001]
[1759750564657,2.1841399,4578.5,4577.8,0.001]
[1759750564858,0.4504,4578.6,4577.8,0.001]
[1759750565096,2.63460408,4578.4,4577.8,0.001]
[1759750565396,2.63460408,4578.4,4577.0,0.4322]
[1759750565397,14.01391924,4578.3,4577.0,1.17371201]
[1759750565557,4.698,4578.0,4577.0,0.001]
[1759750565759,2.1846463,4577.4,4577.0,0.001]
[1759750565957,2.38870417,4577.4,4577.0,0.001]
[1759750566189,2.83910417,4577.4,4577.0,0.001]
[1759750571673,2.92655507,4577.4,4577.0,0.001]
[1759750572080,2.7224972,4577.4,4577.0,0.001]
[1759750572599,2.18456452,4577.6,4577.0,0.001]
[1759750572809,0.4504,4577.9,4577.0,0.001]
[1759750572977,2.18450313,4577.7,4577.0,0.001]
[1759750573176,2.18463588,4577.5,4577.0,0.001]
[1759750574000,0.08744058,4578.0,4577.3,0.6346]
[1759750574183,2.18427629,4578.2,4577.4,0.6336]
[1759750574383,0.1096,4577.8,4577.4,0.6336]
[1759750574606,0.1096,4577.8,4577.4,2.8182459]
[1759750574810,0.1096,4577.8,4577.4,3.2494459]
[1759750575176,0.1096,4577.8,4577.6,0.6336]
[1759750576782,0.1096,4577.8,4577.3,0.6346]
[1759750577105,0.1096,4577.8,4577.3,0.001]
[1759750577106,2.18458574,4577.6,4577.3,0.001]
[1759750577310,0.1096,4577.4,4577.3,0.001]
[1759750577621,2.2942463,4577.4,4577.3,0.001]
[1759750578316,2.7446463,4577.4,4577.3,0.001]
[1759750580794,0.1096,4577.4,4577.3,0.001]
[1759750583089,2.2942463,4577.4,4577.3,0.001]
[1759750583857,2.1846463,4577.4,4577.3,0.001]
[1759750584009,0.4504,4578.2,4577.3,0.001]
[1759750584390,2.18454594,4577.7,4577.3,0.001]
[1759750584711,2.18455862,4577.6,4577.3,0.001]
[1759750585121,2.18461041,4577.5,4577.3,0.001]
[1759750585684,0.4504,4578.2,4577.3,0.001]
[1759750585907,2.18457821,4577.6,4577.3,0.001]
[1759750586208,0.4504,4578.2,4577.3,0.001]
[1759750586209,2.18448768,4577.8,4577.3,0.001]
[1759750586601,0.4504,4578.0,4577.3,0.001]
[1759750586808,0.002,4578.4,4577.3,0.001]
[1759750586809,2.63489699,4577.8,4577.3,0.001]
[1759750587008,2.18450541,4577.7,4577.3,0.001]
[1759750587312,2.18457363,4577.6,4577.3,0.001]
[1759750587512,0.4504,4577.8,4577.3,0.001]
[1759750587715,2.63485806,4577.8,4577.3,0.001]
[1759750588214,2.18452143,4577.7,4577.3,0.001]
[1759750588418,2.18442737,4577.9,4577.3,0.001]
[1759750588594,0.4504,4578.2,4577.3,0.001]
[1759750588923,2.18441342,4577.9,4577.3,0.6346]
[1759750589219,0.4504,4578.1,4577.3,0.6346]
[1759750589395,0.4504,4578.1,4577.3,0.001]
[1759750589802,2.1846463,4577.4,4577.3,0.001]
[1759750590111,0.4504,4578.1,4577.3,0.001]
[1759750590314,2.18435998,4578.0,4577.3,0.001]
[1759750590691,2.18455634,4577.6,4577.3,0.001]
[1759750590894,0.4504,4577.9,4577.3,0.001]
[1759750591117,2.63503264,4577.5,4577.3,0.001]
[1759750591423,2.1846463,4577.4,4577.3,0.001]
[1759750591834,0.4504,4577.4,4577.3,0.001]
[1759750593822,0.1096,4577.4,4577.3,0.001]
[1759750595003,0.4688,4578.2,4577.3,0.001]
[1759750595212,0.1096,4577.4,4577.3,0.001]
[1759750599430,2.2942463,4577.4,4577.3,0.001]
[1759750599632,2.96735933,4577.4,4577.3,0.001]
[1759750602221,5.26535933,4577.4,4577.3,0.001]
[1759750606448,7.66535933,4577.4,4577.3,0.001]
[1759750606655,6.88269403,4577.3,4577.2,0.001]
[1759750606818,7.08700706,4577.3,4577.2,0.001]
[1759750607153,7.55580706,4577.3,4577.2,0.001]
[1759750607647,5.15580706,4577.3,4577.2,0.001]
[1759750608931,7.55580706,4577.3,4577.2,0.001]
[1759750610627,7.64247383,4577.3,4577.2,0.001]
[1759750613759,19.62842086,4577.3,4577.2,0.001]
[1759750614623,4.48288496,4576.9,4576.8,0.001]
[1759750614819,2.18526693,4576.1,4575.1,0.456]
[1759750615071,2.38957996,4576.1,4574.5,0.001]
[1759750615364,2.85837996,4576.1,4574.5,0.001]
[1759750615528,2.94586892,4576.1,4574.5,0.001]
[1759750616122,5.24386892,4576.1,4574.5,0.001]
[1759750616328,5.24294,4576.1,4574.6,0.456]
[1759750616923,7.64294,4576.1,4574.5,0.001]
[1759750617120,4.48374457,4575.1,4574.5,0.001]
[1759750617453,16.67307571,4575.1,4574.5,0.001]
[1759750617671,17.14187571,4575.1,4574.5,0.001]
[1759750619265,14.84387571,4575.1,4574.5,0.001]
[1759750619467,14.84348614,4575.1,4574.5,0.001]
[1759750620923,15.29948614,4575.1,4574.5,0.001]
[1759750621136,15.74594538,4575.1,4574.5,0.001]
[1759750621335,20.44394538,4575.1,4574.5,0.001]
[1759750623955,4.48398347,4574.6,4574.5,0.001]
[1759750624162,4.78897801,4574.6,4574.5,0.001]
[1759750624466,2.298,4574.1,4571.5,2.18743386]
[1759750624636,2.18679612,4572.9,4572.8,0.4586]
[1759750624963,2.29639612,4572.9,4572.8,0.4586]
[1759750626555,0.1096,4572.9,4572.8,0.4586]
[1759750626760,2.29639612,4572.9,4572.8,0.4586]
[1759750627040,0.1096,4572.9,4572.8,0.4586]
[1759750628056,2.18637255,4573.8,4572.8,0.4586]
[1759750628232,2.4,4575.2,4572.9,0.6336]
[1759750628437,0.1096,4573.1,4573.0,0.4586]
[1759750629445,2.29630048,4573.1,4573.0,0.4586]
[1759750629636,0.1096,4573.1,4573.0,0.4586]
[1759750630337,2.1867483,4573.0,4572.6,0.4586]
[1759750630561,2.1867483,4573.0,4572.7,0.4586]
[1759750630562,2.18684394,4572.8,4572.7,0.4586]
[1759750630766,2.18641362,4573.7,4571.7,0.02]
[1759750631067,0.43026807,4573.9,4571.7,0.02]
[1759750631068,0.1096,4571.9,4571.7,0.02]
[1759750631372,0.1096,4571.9,4571.8,2.64592228]
[1759750631550,0.1096,4571.9,4571.8,3.13125497]
[1759750632349,0.1096,4571.9,4571.8,3.76485497]
[1759750633162,0.1096,4571.9,4571.8,1.57753269]
[1759750633356,0.1096,4571.9,4571.8,1.0922]
[1759750633594,0.1096,4571.9,4571.8,3.27952228]
[1759750634080,0.1096,4572.3,4572.2,0.6336]
[1759750634376,0.1096,4572.3,4572.2,1.0922]
[1759750635273,0.1088,4572.3,4572.2,1.0922]
[1759750635979,0.1088,4572.3,4572.2,3.27933092]
[1759750636402,0.1088,4572.3,4572.2,3.82598874]
[1759750636580,0.1096,4572.6,4572.5,0.6336]
[1759750636785,0.4329,4574.6,4572.5,1.11406987]
[1759750636986,0.4329,4574.6,4572.2,0.54665782]
[1759750636987,0.1096,4573.1,4572.6,1.0922]
[1759750637151,0.1096,4573.1,4572.8,0.6336]
[1759750637568,0.1096,4573.1,4573.0,0.6336]
[1759750637861,0.1096,4573.1,4573.0,1.0922]
[1759750639150,0.1096,4573.1,4571.8,2.18727925]
[1759750639151,0.1096,4573.1,4572.1,0.4586]
[1759750639350,0.1096,4572.6,4572.2,3.0336]
[1759750639588,0.1096,4572.6,4572.4,0.6336]
[1759750639955,0.1096,4572.6,4572.5,1.0922]
[1759750640580,0.1096,4572.6,4572.5,0.6336]
[1759750641265,0.1096,4572.6,4572.5,1.0922]
[1759750643576,0.1096,4572.6,4572.5,0.6336]
[1759750644995,2.50025027,4572.6,4572.5,0.6336]
[1759750645206,0.31331068,4572.6,4572.5,0.6336]
[1759750646090,0.74621068,4572.6,4571.7,0.02]
[1759750646263,0.1096,4571.8,4571.7,0.02]
[1759750647077,0.31358512,4571.8,4571.7,0.02]
[1759750648824,0.1096,4571.8,4571.7,0.02]
[1759750650390,0.31366467,4571.8,4571.7,0.02]
[1759750650985,0.31366467,4571.8,4571.7,1.1122]
[1759750651314,0.31366467,4571.8,4571.7,0.02]
[1759750652214,0.1096,4571.8,4571.7,0.4786]
[1759750652416,0.1096,4571.8,4571.7,5.69957012]
[1759750652718,0.002,4572.6,4572.3,0.6336]
[1759750653016,0.1096,4572.4,4572.3,0.6336]
[1759750653198,0.1096,4572.4,4572.3,3.0336]
[1759750653392,0.1096,4572.4,4572.3,2.82068308]
[1759750653608,0.1096,4572.4,4572.3,1.0654]
[1759750653803,0.1096,4572.4,4572.3,3.4654]
[1759750654002,0.1096,4572.4,4572.3,1.0654]
[1759750654603,0.1096,4572.4,4572.3,0.4318]
[1759750654798,0.1096,4572.4,4572.3,3.4654]
[1759750655813,0.1096,4572.4,4572.3,3.0336]
[1759750655814,0.31371342,4572.4,4572.3,3.0336]
[1759750656300,0.1096,4572.4,4572.3,3.0336]
[1759750658635,0.002,4572.6,4572.4,0.6336]
[1759750659102,0.1096,4572.5,4572.4,0.6336]
[1759750659421,0.1096,4572.5,4572.4,3.0336]
[1759750659716,0.5733,4572.5,4571.7,0.6536]
[1759750659914,0.5733,4572.5,4571.7,2.84095875]
[1759750660117,0.002,4572.6,4571.7,0.6536]
[1759750660316,0.002,4572.6,4572.1,0.6336]
[1759750660519,0.002,4572.6,4572.1,3.0336]
[1759750660822,0.1096,4572.3,4571.8,3.0336]
[1759750661121,0.002,4572.6,4571.7,0.6536]
[1759750661294,0.1096,4572.0,4571.9,0.6336]
[1759750661495,0.1096,4572.0,4571.9,5.66647443]
[1759750662622,0.1096,4572.3,4572.1,3.0336]
[1759750662832,0.1096,4572.3,4572.0,0.6336]
[1759750663132,0.1096,4572.3,4572.0,1.0792]
[1759750663313,0.1096,4572.3,4572.1,0.4456]
[1759750663516,0.1096,4572.3,4572.2,5.66633092]
[1759750663720,0.1096,4572.3,4572.2,6.45168383]
[1759750664029,0.1096,4572.3,4572.2,1.0792]
[1759750664215,0.1096,4572.3,4572.2,3.4792]
[1759750664730,0.1096,4572.3,4572.2,3.26633092]
[1759750665246,0.002,4572.6,4572.4,2.18702955]
[1759750665548,0.1116,4572.6,4572.5,0.6336]
[1759750665841,0.1116,4572.6,4572.5,5.54721545]
[1759750666020,0.002,4572.6,4572.5,5.99281545]
[1759750666340,0.002,4572.6,4572.5,6.10241545]
[1759750668939,0.002,4573.1,4573.0,2.1867483]
[1759750669113,0.002,4573.1,4573.0,5.57049061]
[1759750669437,0.002,4573.1,4573.0,5.99422313]
[1759750669637,0.002,4573.1,4573.0,6.45872313]
[1759750669934,0.002,4573.1,4573.0,8.02661603]
[1759750670436,0.002,4573.1,4573.0,6.45872313]
[1759750670607,0.002,4573.1,4573.0,5.88462313]
[1759750676342,2.18560996,4575.4,4573.2,0.6336]
[1759750676343,0.4645,4575.4,4573.2,0.6336]
[1759750676525,0.4645,4575.3,4573.4,0.6336]
[1759750676721,2.87040461,4577.3,4574.8,0.6336]
[1759750676722,0.4645,4575.2,4574.8,0.6336]
[1759750676928,0.4645,4575.1,4574.8,0.6336]
[1759750677145,0.4645,4575.0,4574.6,3.0336]
[1759750677332,2.18542292,4575.8,4574.7,0.6336]
[1759750677521,0.4645,4575.7,4574.7,0.6336]
[1759750677729,2.18542292,4575.8,4574.7,0.6336]
[1759750677937,0.4645,4575.6,4574.7,0.6336]
[1759750678227,0.4645,4575.6,4574.8,0.6336]
[1759750678428,0.4645,4575.5,4574.7,0.6336]
[1759750678658,0.4645,4575.4,4574.9,0.6336]
[1759750678862,0.4645,4575.3,4575.0,0.02185792]
[1759750679037,0.4645,4575.3,4575.2,5.2192968]
[1759750679238,0.4645,4575.6,4575.3,3.0336]
[1759750679558,0.4645,4575.5,4575.1,0.6336]
[1759750679732,0.4645,4575.4,4575.1,0.6336]
[1759750680045,0.4645,4575.4,4575.1,2.18574457]
[1759750680244,2.18522506,4576.2,4575.4,3.0336]
[1759750680449,0.4645,4576.1,4575.4,3.0336]
[1759750680650,0.1096,4575.5,4575.4,3.0336]
[1759750680848,0.5741,4575.5,4575.3,3.0336]
[1759750681152,0.5741,4575.5,4575.4,0.6336]
[1759750681333,0.1096,4575.5,4575.4,0.6336]
[1759750681732,0.1096,4575.5,4575.4,3.0336]
[1759750682032,0.4645,4575.7,4575.4,0.65545601]
[1759750682033,0.1096,4575.7,4575.4,0.65545601]
[1759750682358,0.1096,4575.7,4575.6,0.6336]
[1759750682560,0.4645,4575.6,4575.1,0.6336]
[1759750682856,0.1096,4575.3,4574.8,0.6336]
[1759750683056,0.434,4575.2,4575.0,0.6336]
[1759750683458,0.434,4575.2,4575.1,2.81934457]
[1759750683759,1.08567037,4580.7,4575.1,2.81934457]